Cogmind - Beta 15 @@@ ROGUE MODE // 2025.05.06 @ 21:11:01 Player: LightKnight Result: Destroyed by U1-DZ1(j) with Overtuned Pulse Rifle Performance ------------- Evolutions (0) 0 Regions Visited (4) 800 Robots Destroyed (22) 110 Value Destroyed (584) 584 Prototype IDs (10) 200 Alien Tech Used (0) 0 Bonus (1364) 1364 TOTAL SCORE: 3058 Bonus ------- Follower Combat Kills 564 Registered with UFD 300 Met Optimus in HQ 500 Cogmind --------- Core Integrity 0/250 Matter 262/300 Energy 265/265 System Corruption 1% Temperature Cool (15) Movement Treading (160) Location -9/Scraptown Parts ------- > --- POWER (1) -------- Improved Ion Engine > --- PROPULSION (2) --- Light Treads Light Treads > --- UTILITY (2) ------ Large Storage Unit Seismic Detector > --- WEAPON (2) ------- (None) > --- INVENTORY (15) --- Subdweller Power Source Light Treads Light Treads Light Treads Aluminum Leg Wheel Compact Wheel Subdweller Monowheel Small Storage Unit Subdweller Optics Authchip [R/Combat] Subdweller Laser Light Assault Rifle Peak State ------------ > --- POWER ------------ Improved Ion Engine > --- PROPULSION ------- Light Treads Light Treads > --- UTILITY ---------- Large Storage Unit Subdweller Optics > --- WEAPON ----------- Heavy Assault Rifle Barrage Gun > --- INVENTORY -------- Ion Engine Subdweller Power Source Light Treads Light Treads Light Treads Aluminum Leg Wheel Compact Wheel Subdweller Monowheel Small Storage Unit Authchip [R/Combat] Subdweller Laser Subdweller Laser Light Assault Rifle Rocket Launcher [Rating: 14] Favorites ----------- Power Improved Ion Engine Engine Improved Ion Engine Propulsion Light Treads Treads Light Treads Leg Aluminum Leg Utility Large Storage Unit Device Seismic Detector Storage Large Storage Unit Protection Light Armor Plating Weapon Barrage Gun Energy Gun Subdweller Laser Ballistic Gun Barrage Gun Launcher Rocket Launcher Build | -11 -10 -10 -9 -9 ------- Run | Yrd Mat Sub Rec Scr Slots Evolved . | . . . . . Power . | . . . . . Propulsion . | . . . . . Utility . | . . . . . Weapon . | . . . . . Parts Attached 14 | . 1 6 6 1 Power 2 | . . . 2 . Engine 2 | . . . 2 . Core . | . . . . . Reactor . | . . . . . Propulsion 3 | . . 2 1 . Treads 3 | . . 2 1 . Leg . | . . . . . Wheel . | . . . . . Hover . | . . . . . Flight . | . . . . . Utility 4 | . 1 2 1 . Device 2 | . . 1 1 . Storage 1 | . . 1 . . Processor . | . . . . . Hackware . | . . . . . Protection 1 | . 1 . . . Artifact . | . . . . . Weapon 5 | . . 2 2 1 Energy Gun 1 | . . 1 . . Energy Cannon . | . . . . . Ballistic Gun 3 | . . 1 2 . Ballistic Cannon . | . . . . . Launcher 1 | . . . . 1 Special Weapon . | . . . . . Impact Weapon . | . . . . . Slashing Weapon . | . . . . . Piercing Weapon . | . . . . . Special Melee Weapon . | . . . . . Unidentified Prototypes . | . . . . . Parts Lost 2 | . . 1 . 1 Power . | . . . . . Propulsion 1 | . . 1 . . Utility . | . . . . . Weapon 1 | . . . . 1 Highest Loss Streak 1 | . . 1 . 1 To Critical Strikes . | . . . . . Average Backups 13 | . 7 8 13 14 Power 1 | . 1 1 2 1 Propulsion 6 | . 4 4 6 7 Utility 2 | . . 1 1 3 Weapon 3 | . 1 1 3 3 Tool/Special . | . . . . . Unused Backups 18 | . 6 2 1 9 Power 3 | . 1 . 1 1 Propulsion 9 | . 2 1 . 6 Utility 2 | . 1 . . 1 Weapon 4 | . 2 1 . 1 Tool/Special . | . . . . . Average Slot Usage (%) 86 | . 91 99 98 71 Engine 14 | . 14 14 14 14 Treads 24 | . . 9 28 28 Leg 3 | . 28 17 . . Device 12 | . . 6 13 14 Storage 14 | . 14 14 14 14 Protection 1 | . 5 7 . . Energy Gun 1 | . . 5 . . Ballistic Gun 14 | . 28 22 26 . Peak Build Rating 14 | . 7 12 14 10 Average Rating 9 | . 6 8 12 8 On Entrance 7 | 6 6 7 12 8 Naked Turns . | . . . . . Heaviest Build 35 | 13 16 34 35 28 Greatest Support 40 | 20 20 40 40 40 Greatest Overweight (x) . | . . . . . Average Overweight (x) . | . . . . . Largest Inventory Capacity 15 | . 8 15 15 15 Average Capacity 14 | . 8 10 15 15 Most Carried 15 | . 8 9 15 15 Average Carried 13 | . 7 8 13 14 Final Capacity 15 | 8 8 15 15 15 Final Carried 15 | 6 8 9 15 13 Class Distribution -------------------- 78% | Commander-Mutant 21% | Mutant Dominant Class ---------------- Mutant | -10/Materials Mutant | -10/Subcaves Commander-Mutant | -9/Recycling Commander-Mutant | -9/Scraptown Resources | -11 -10 -10 -9 -9 ----------- Run | Yrd Mat Sub Rec Scr Matter Collected 606 | 194 16 193 188 15 Remotely . | . . . . . Salvage Created 747 | . . 201 355 191 Parts 49 | . . 14 26 9 Haulers Intercepted . | . . . . . Recyclers Shooed . | . . . . . Parts Field Recycled . | . . . . . Retrieved Matter . | . . . . . Parts Self-Destructed 18 | . . 18 . . Prevented . | . . . . . Kills | -11 -10 -10 -9 -9 ------- Run | Yrd Mat Sub Rec Scr Combat Hostiles Destroyed 17 | . . 6 9 2 Guns 15 | . . 6 9 . AOE 2 | . . . . 2 Classes Destroyed 9 | . . 4 4 1 Turret 2 | . . 2 . . Swarmer 6 | . . 4 2 . Grunt 3 | . . 1 2 . Brawler 1 | . . . 1 . Protector 4 | . . . 1 3 Sentry 2 | . . . 2 . Programmer 1 | . . . 1 . Subdweller 1 | . . 1 . . Scrapper 2 | . . . . 2 Best Kill Streak 4 | . . 4 3 2 Combat Bots Only 4 | . . 4 3 2 Max Kills in Single Turn 3 | . . 1 1 3 Gunslinging . | . . . . . Exploded 2 | . . . . 2 Melee . | . . . . . Uniques/NPCs Destroyed . | . . . . . Combat | -11 -10 -10 -9 -9 -------- Run | Yrd Mat Sub Rec Scr Hostile Shots Fired 175 | . . 124 36 15 Missed 63 | . . 49 9 5 Hits 112 | . . 75 27 10 Projectile 112 | . . 75 27 10 Critical Strikes 2 | . . . 1 1 Damage Taken 1112 | . . 591 357 164 Core 251 | . . 130 81 40 Absorbed by Shields 113 | . . . 63 50 Core Remaining (%) 100 | 100 . . . . Volleys Fired 54 | . . 32 19 3 Largest 2 | . . 2 2 1 Hottest 88 | . . 88 88 33 Shots Fired 106 | . . 64 39 3 Gun 103 | . . 64 39 . Cannon . | . . . . . Launcher 3 | . . . . 3 Special . | . . . . . Kinetic 96 | . . 57 39 . Thermal 7 | . . 7 . . Explosive 3 | . . . . 3 Electromagnetic . | . . . . . Robot Hit Streak 10 | . . 10 9 1 Robot Miss Streak 4 | . . 4 3 1 Penetration Max . | . . . . . Secondary Targets 3 | . . 3 . . Max Gunslinging Chain 1 | . . 1 . . Shots Hit Robots 64 | . . 37 26 1 Core Hits 36 | . . 15 13 8 Critical Kills . | . . . . . Critical Parts Destroyed . | . . . . . Critical Strikes 1 | . . 1 . . Destroy 1 | . . 1 . . Melee Attacks . | . . . . . Impact . | . . . . . Slashing . | . . . . . Piercing . | . . . . . Sneak Attacks . | . . . . . Combat Hostiles . | . . . . . Follow-up Attacks . | . . . . . Damage Inflicted 1323 | . . 512 483 328 Guns 955 | . . 512 443 . Cannons . | . . . . . Explosions 328 | . . . . 328 Melee . | . . . . . Ramming 40 | . . . 40 . Kinetic 834 | . . 391 443 . Thermal 121 | . . 121 . . Explosive 328 | . . . . 328 Electromagnetic . | . . . . . Impact . | . . . . . Slashing . | . . . . . Piercing . | . . . . . Highest Corruption 2 | . . . 2 1 Average Corruption 1 | . . . 1 1 Corruption Purged . | . . . . . Corruption Blocked . | . . . . . Effects 16 | . . . 16 . Message Errors 3 | . . . 3 . Matter Fused 3 | . . . 3 . Heat Flow Errors 3 | . . . 3 . Energy Discharges 2 | . . . 2 . Data Loss (minor) 1 | . . . 1 . Data Loss (major) 2 | . . . 2 . Misfires 2 | . . . 2 . Overload Shots . | . . . . . Overflow Damage 37 | . . . . 37 Projectiles . | . . . . . Explosions 37 | . . . . 37 Melee . | . . . . . Knockbacks . | . . . . . Impact . | . . . . . Kinetic . | . . . . . Secondary . | . . . . . Self-Inflicted Damage 49 | . . . . 49 Shots 1 | . . . . 1 Rammed 4 | . . . 4 . Targets Rammed 4 | . . . 4 . Kicked . | . . . . . Crushed . | . . . . . Highest Temperature 216 | . . 24 216 33 Average Temperature 44 | . . 12 51 21 Received Heat Transfer 421 | . . 294 64 63 Siege Activations . | . . . . . Martial Activations . | . . . . . Shielding Activations . | . . . . . Robots Disrupted . | . . . . . Combat Hostiles . | . . . . . Robots Corrupted . | . . . . . Combat Hostiles . | . . . . . Parts Fried . | . . . . . Impact Corruptions . | . . . . . Robots Melted . | . . . . . Combat Hostiles . | . . . . . Parts Melted . | . . . . . Heat Transferred 150 | . . 150 . . Parts Sabotaged . | . . . . . Parts Stolen . | . . . . . Parts Stripped . | . . . . . Power Chain Reactions . | . . . . . Alert | -11 -10 -10 -9 -9 ------- Run | Yrd Mat Sub Rec Scr Maximum Alert Level 1 | . . . 1 . Low Security (%) 91 | . 100 . 90 . Level 1 8 | . . . 9 . Level 2 . | . . . . . Level 3 . | . . . . . Level 4 . | . . . . . Level 5 . | . . . . . High Security . | . . . . . Max Security . | . . . . . Peak Influence 249 | . 8 . 249 . Initial 100 | . . . 100 . Average 96 | . . . 101 . Influence Increases 951 | . 8 405 538 . Destroy 0b10 Robot/C 460 | . . 140 320 . Destroy 0b10 Robot/NC 70 | . . . 70 . Destroy Leader 10 | . . 10 . . Allied During Kill 95 | . . . 95 . Successful Hack 27 | . 8 . 19 . Destroy Structure 19 | . . . 19 . Lose Combat Pursuer 270 | . . 255 15 . Influence Decreases 951 | . 8 194 718 31 Entered New Map 142 | . . . 111 31 Time Decay 719 | . 8 184 527 . Lost Part 10 | . . 10 . . Lost Ally 80 | . . . 80 . Squads Dispatched . | . . . . . Investigation . | . . . . . Extermination . | . . . . . Reinforcement . | . . . . . Assault . | . . . . . Garrison . | . . . . . Intercept . | . . . . . Searches Triggered . | . . . . . Construction Impeded . | . . . . . Haulers Reinforced . | . . . . . Active Scanning Responses . | . . . . . Cargo Convoy Interrupts . | . . . . . Stealth | -11 -10 -10 -9 -9 --------- Run | Yrd Mat Sub Rec Scr Distress Signals 3 | . . . 3 . Communications Jammed . | . . . . . Distress Signals . | . . . . . Times Spotted 40 | . . 13 16 11 Peak Tracking Total 7 | . . 6 7 5 Tactical Retreats 6 | . . 4 1 1 Traps | -11 -10 -10 -9 -9 ------- Run | Yrd Mat Sub Rec Scr Traps Triggered . | . . . . . Indirectly . | . . . . . Trap Hack Attempts . | . . . . . Triggered . | . . . . . Disarmed . | . . . . . Reprogrammed . | . . . . . Reused . | . . . . . Traps Extracted . | . . . . . Installed . | . . . . . Triggered . | . . . . . Machines | -11 -10 -10 -9 -9 ---------- Run | Yrd Mat Sub Rec Scr Machines Disabled 2 | . . . . 2 Max in Single Turn . | . . . . . Machines Repaired . | . . . . . Machines Dismantled . | . . . . . Machines Sabotaged . | . . . . . Overloaded Fab Kills . | . . . . . Hacking | -11 -10 -10 -9 -9 --------- Run | Yrd Mat Sub Rec Scr Machines Accessed 10 | . 1 . 5 4 Terminals 6 | . 1 . 5 . Fabricators . | . . . . . Repair Stations . | . . . . . Recycling Units . | . . . . . Scanalyzers . | . . . . . Garrison Access . | . . . . . Total Hacks 49 | . 3 . 20 26 Successful 40 | . 3 . 11 26 Failed 8 | . . . 8 . Catastrophic 1 | . . . 1 . Database Lockouts 1 | . . . 1 . Manual 19 | . 2 . 16 1 Terminals 23 | . 3 . 20 . Fabricators . | . . . . . Repair Stations . | . . . . . Recycling Units . | . . . . . Scanalyzers . | . . . . . Garrison Access . | . . . . . Terminal Hacks 35 | . 2 . 7 26 Record 27 | . 1 . 1 25 Part Schematic 3 | . . . 3 . Robot Schematic 1 | . . . 1 . Prototype ID Bank 2 | . . . 2 . Branch Access Points 1 | . 1 . . . Proto ID Catalog 1 | . . . . 1 Fabricator Hacks . | . . . . . Repair Station Hacks . | . . . . . Recycling Unit Hacks . | . . . . . Scanalyzer . | . . . . . Garrison Access Hacks . | . . . . . Unauthorized Hacks 5 | . 1 . 4 . Terminals 5 | . 1 . 4 . Botnet 5 | . 1 . 4 . Fabricators . | . . . . . Repair Stations . | . . . . . Recycling Units . | . . . . . Scanalyzers . | . . . . . Garrison Access . | . . . . . Data Cores Recovered . | . . . . . Used . | . . . . . Hacking Detections 3 | . 1 . 2 . Full Trace Events . | . . . . . Feedback Events . | . . . . . Feedback Blocked . | . . . . . Robot Schematics Acquired 1 | . . . 1 . Robots Built . | . . . . . Authchips . | . . . . . Time . | . . . . . Total Robot Build Rating . | . . . . . Part Schematics Acquired 3 | . . . 3 . Parts Built . | . . . . . Authchips . | . . . . . Time . | . . . . . Total Part Build Rating . | . . . . . Parts Repaired . | . . . . . Time . | . . . . . Parts Recycled . | . . . . . Recycled Matter . | . . . . . Retrieved Matter . | . . . . . Retrieved Components . | . . . . . Parts Scanalyzed . | . . . . . Part Schematics Acquired . | . . . . . Parts Damaged . | . . . . . Bothacking | -11 -10 -10 -9 -9 ------------ Run | Yrd Mat Sub Rec Scr Used RIF Installer . | . . . . . Robots Hacked . | . . . . . Non-combat . | . . . . . Combat . | . . . . . Robot Hacks Applied . | . . . . . Relay Couplers Released . | . . . . . Fabnet Peak Effective % . | . . . . . Robots Rewired 21 | . . . 21 . Allies Hacked . | . . . . . Hacks Repelled . | . . . . . Allies | -11 -10 -10 -9 -9 -------- Run | Yrd Mat Sub Rec Scr Total Allies 21 | . . . 21 . Largest Group 15 | . . . 15 14 Highest-Rated Group 312 | . . . 312 307 Highest-Rated Ally 34 | . . . 34 34 Total Orders . | . . . . . Ally Attacks 59 | . . . 47 12 Total Damage 1830 | . . . 1116 714 Kills 26 | . . . 19 7 Allies Corrupted . | . . . . . Allies Melted . | . . . . . Intel | -11 -10 -10 -9 -9 ------- Run | Yrd Mat Sub Rec Scr Active Infowar (turns) 1030 | . . 293 717 20 Optics 656 | . . 293 363 . Seismic 374 | . . . 354 20 Robot Analysis Total . | . . . . . Derelict Logs Recovered 4 | . . 1 . 3 Drone Launches . | . . . . . Drone Recoveries . | . . . . . Exploration | -11 -10 -10 -9 -9 ------------- Run | Yrd Mat Sub Rec Scr Turns Passed 4537 | . 96 648 1858 1935 Spaces Moved 2648 | 1 78 400 965 1204 Core . | . . . . . Treads 2305 | . . 136 965 1204 Legs 343 | 1 78 264 . . Wheels . | . . . . . Hover . | . . . . . Flight . | . . . . . Fastest Speed 120 | 120 120 120 160 160 Average Speed 154 | 120 120 133 160 160 Slowest Speed 160 | 120 120 160 160 160 Overloaded Moves . | . . . . . Propulsion Burnouts . | . . . . . Robots Hopped . | . . . . . Potential Cave-ins . | . . . . . Cave-ins Triggered . | . . . . . Exploration Rate (%) 46 | 2 20 27 99 83 Regions Visited 4 Branch Regions 3 Pre-discovered Areas 1 | . . 1 . . Known Exits Taken . | . . . . . Unknown Exits Taken 4 | 1 1 1 1 . Scrap Searched 5 | . . 1 . 4 Spaces Dug . | . . . . . Terrain Destroyed 36 | . . . . 36 Melee . | . . . . . Projectile . | . . . . . AOE 36 | . . . . 36 Terrain Rammed . | . . . . . Walls Destroyed . | . . . . . Machines Disabled . | . . . . . Actions | -11 -10 -10 -9 -9 --------- Run | Yrd Mat Sub Rec Scr Total 2986 | . 80 455 1242 1209 Wait 37 | . . 9 28 . Move 2644 | . 77 399 964 1204 Hop . | . . . . . Pick Up 10 | . 2 3 5 . Fast Attach 6 | . 1 4 1 . Attach 3 | . . 2 . 1 Detach 1 | . . . 1 . Swap 6 | . . 1 5 . Drop 10 | . . 5 5 . Fire 54 | . . 32 19 3 Melee . | . . . . . Ram . | . . . . . Kick . | . . . . . Crush 4 | . . . 4 . Escape Stasis . | . . . . . Rewire 211 | . . . 210 1 Trap . | . . . . . Miscellaneous . | . . . . . Route ------- -11/Scrapyard -10/Materials (discovered 2 exits: Min / [*Sub]) -10/Subcaves (discovered 3 exits: [*Mat] / *Rec / *Scr) -9/Recycling (discovered 2 exits: [*Fac] / *Scr) -9/Scraptown (discovered 1 exit: [*Fac]) History --------- Turn | Location | Event 1 | -11/Scrapyard | Discovered new exit (range 0) 1 | -11/Scrapyard | Entered Materials 2 | -10/Materials | Met a group of wandering Federalists 17 | -10/Materials | Identified exit to Mines 93 | -10/Materials | Discovered new exit (range 6) 97 | -10/Materials | Entered Subcaves 98 | -10/Subcaves | Continued accompanying wandering Federalists (4) 275 | -10/Subcaves | Learned location of Mines (-9) 318 | -10/Subcaves | Build established: Mutant 365 | -10/Subcaves | Wandering Federalist uncovered a shortcut to Scraptown 453 | -10/Subcaves | Discovered new exit (range 21) 614 | -10/Subcaves | Discovered new exit (range 21) 638 | -10/Subcaves | Core integrity fell below 50% 745 | -10/Subcaves | Entered Recycling 1178 | -9/Recycling | Discovered new exit (range 6) 1272 | -9/Recycling | Build established: Commander-Mutant 1322 | -9/Recycling | P-60 Hacker assimilated allied Grenadier 2a 1346 | -9/Recycling | Core integrity fell below 20% 1417 | -9/Recycling | Lost 3 allies 2548 | -9/Recycling | Scanned before Scraplab entrance 2570 | -9/Recycling | Entered Scraplab 2583 | -9/Recycling | Discovered new exit (range 2) 2603 | -9/Recycling | Entered Scraptown 2603 | -9/Scraptown | Accompanied by 14 allies 2603 | -9/Scraptown | System corruption cleaned by C-Scrubber 3011 | -9/Scraptown | Heard Great Nut preacher, LISTEN AND RECITE! 3039 | -9/Scraptown | Discovered new exit (range 11) 3112 | -9/Scraptown | Scanned Subdweller tech in exchange for log data 3117 | -9/Scraptown | Learned Factory machine intel 3119 | -9/Scraptown | Learned Factory emergency access door positions 3120 | -9/Scraptown | Learned Research non-interactive machine intel 3154 | -9/Scraptown | Visited The Evicted 3189 | -9/Scraptown | Visited Red Mages 3355 | -9/Scraptown | Visited Cyclists 3443 | -9/Scraptown | Visited Cave Peace 3464 | -9/Scraptown | Visited Fellowship of the Rings 3706 | -9/Scraptown | Visited CR-KLE's Repair Center 3735 | -9/Scraptown | Visited Shadow of the Wyrm 3762 | -9/Scraptown | Visited UFD Registry 3762 | -9/Scraptown | Registered with UFD as "Steelchaser" 3909 | -9/Scraptown | Guru changed UFD alias to "Bioback" 4050 | -9/Scraptown | Visited Scrapoid Research Area 4132 | -9/Scraptown | Visited Abandonware Association 4152 | -9/Scraptown | Learned abandonware demo "SHUTEYE.EXE" 4152 | -9/Scraptown | Learned abandonware demo "REBOOT5.EXE" 4188 | -9/Scraptown | Visited Science Testing Area 4217 | -9/Scraptown | Visited Science Guys 4324 | -9/Scraptown | Visited Research Penetration Think Tank 4385 | -9/Scraptown | Met Optimus 4385 | -9/Scraptown | Accepted into 0bPrime 4484 | -9/Scraptown | Visited Junk Repository 4501 | -9/Scraptown | Civil war broke out across Scraptown 4538 | -9/Scraptown | Destroyed by U1-DZ1(j) with Overtuned Pulse Rifle Last Messages --------------- 04520_ Bolt penetrates Machine. 04520_ Slug penetrates Machine. 04521_ The unstable cave ceiling collapses. 04530_ U1-DZ1(j) cannibalizes Imp. Deuterium Engine to repair Lgt. Deuterium Engine. 04530_ Bolt penetrates Wall. 04532_ HE-86U(j) destroyed. 04532_ UZ-KEF(j) destroyed. 04533_ Critical hit (Burn: +37). 04534_ Savior 2b destroyed. 04534_ Rocket Launcher destroyed. 04534_ Destroyed Rocket Launcher. 04534_ Savior 2d destroyed. 04534_ Destroyed Com. Wheel. 04534_ Savior 2f destroyed. 04536_ Bolt penetrates M6-DWM(E). 04536_ Bolt penetrates KE-8RJ(E). 04536_ Machine disabled. 04537_ U1-DZ1(j) heat damages Mak. Microdissipator Network. 04538_ KE-8RJ(E) heat damages Mak. Light Armor Plating. Map ----- +----------------------------------------------------+ | ?????????????????????????????????????????????????? | | ?????????????????????????????????????????????????? | | ?????????????????????????????????????????????????? | | ?????????????????????????????????????????????????? | | ?????????????????????????????????????????????????? | | ?????????????????????????????????????????????????? | | ?????????????????????????????????????????????????? | | ?????????????????????????????????????????????????? | | ?????????????????????????????????????????????????? | | ?????????????????????????????????????????????????? | | ???????????????????????#?#???????????????????????? | | ?????????????????????? # #??????????????????????? | | ?????????????????????? #?????????????????????? | | ?????????????????????## ##????????????????????? | | ?????????????????????? =% #????????????????????? | | ??????????????????????=[!/ ?????????????????????? | | ??????????????????????![[=[ ?????????????????????? | | ??????????????????????#%!%! ?????????????????????? | | ??????????????????????#[!= #?????????????????????? | | ??????????????????????? jp #?????????????????????? | | ??????????????????????? *! #?????????????????????? | | ???????????????????????#%= ##????????????????????? | | ??????????????????????##* ?????????????????????? | | ?????????????????????## #?????????????????????? | | ??????????????###??### #?????????????????????? | | ??????????????# ?# @ #"" ""????????????? | | ??????????????# ## !% " "???????????? | | ??????????????# $ $ %! #"" ""????????????? | | ??????????????# #i% #*" "]????????????? | | ??????????????# #u ##"" "?????????????? | | ??????????????# #i #" ???????????????????? | | ??????????????#### i ## #???????????????????? | | ?????? ???????### # ## #########???????????? | | ??"""" "?????" " "" "## !#???????????? | | ? E =%* "## =!#???????????? | | ? !!%== "## ####???????????? | | ?? *%!% "## =#???????????? | | ??? = j3 "## !!#???????????? | | ???? d b =/#???????????? | | """""""????""""""" E ## ####???????????? | | ??"""""??????""""""""""" ## !#???????????? | | #### ######????######"" ## !!#???????????? | | ##????????#"" "##########?????????? | | X"#????????#"" "## " """"#?????????? | | "" "" ##????????#"" "## ""#?????????? | | "" "" X"#??????###"" "## "#?????????? | | " " ######### #"" "## ""#?????????? | | "" ""#?????????? | | "" "## ""#?????????? | | " " ######### #"" "## """"""#?????????? | +----------------------------------------------------+ Best States ------------- Heat Dissipation 25 Energy Generation 12 Energy Capacity 265 Matter Stores 300 Matter Capacity 300 Sight Range 21 Terrain Scan Density 10 Armor Coverage 150 Evasion (%) 55 Recoil Reduction 2 Authchip Count 1 Item Schematics ----------------- Med. Armor Plating | -9/Recycling | Hacked Pulse Rifle | -9/Recycling | Hacked Adv. Targeting Computer | -9/Recycling | Hacked Robot Schematics ------------------ Y-45 Defender | -9/Recycling | Hacked Fabricated ------------ Nothing Repaired ---------- Nothing Alien Tech Used ----------------- None Achievements -------------- None Challenges ------------ None Game ------ Seed ArcsightDisassembledSword Manual? 0 Play Time 00:34:02 Cumulative 259.5 hours Start 2025.05.06 @ 20:22:05 End 2025.05.06 @ 21:11:01 Sessions 1 Manual Loads 0 Difficulty Rogue Special Mode None Game No. 184 Rogue 184 Adventurer 0 Explorer 0 Win Type - Total 19 Types 16/0/1/2/0/0/0/0/0/0 Lore% 83 Gallery% 70 Achievement% 62 Wizard Run 0 Options --------- Layout 0 ASCII 1 Keyboard 1 Movement Arrows Keybinds 0 Fullscreen 1 Font 18/Terminus Map View 76x50 Zoom Use 0% Tactical HUD 1 Map Filters NONE Filters NONE Steam 1 RUN: e668933e-6070-475e-9b28-d7a14d343d53